[Event "Early-Titled-Tuesday-Blitz-March-19-2024"]
[Site "Chess.com"]
[Date "2024.03.19"]
[Round "1"]
[White "Mikhail_Golubev"]
[Black "Chessdude1987"]
[Result "1-0"]
[WhiteElo "2726"]
[BlackElo "2389"]
[TimeControl "180+1"]
[EndTime "8:07:22 PDT"]
[Termination "Mikhail_Golubev won on time"]

1. e4 {[%clk 0:03:00.9]} 1... e6 {[%clk 0:02:59]} 2. d4 {[%clk 0:02:58.8]} 2...
d5 {[%clk 0:02:58.6]} 3. e5 {[%clk 0:02:59.1]} 3... c5 {[%clk 0:02:58.2]} 4. c3
{[%clk 0:02:59.1]} 4... Nc6 {[%clk 0:02:57.7]} 5. Nf3 {[%clk 0:02:58.9]} 5...
Qb6 {[%clk 0:02:56.2]} 6. Bd3 {[%clk 0:02:57.3]} 6... Nh6 {[%clk 0:02:55.2]} 7.
O-O {[%clk 0:02:54.8]} 7... cxd4 {[%clk 0:02:54.9]} 8. Re1 {[%clk 0:02:36.9]}
8... Nf5 {[%clk 0:02:54.2]} 9. Bxf5 {[%clk 0:02:35.5]} 9... exf5 {[%clk
0:02:54]} 10. cxd4 {[%clk 0:02:35.7]} 10... Be6 {[%clk 0:02:53.7]} 11. Nc3
{[%clk 0:02:35.2]} 11... h6 {[%clk 0:02:53.8]} 12. h4 {[%clk 0:02:31.1]} 12...
Be7 {[%clk 0:02:52.2]} 13. Ne2 {[%clk 0:02:29.6]} 13... O-O-O {[%clk 0:02:36.6]}
14. h5 {[%clk 0:02:28.3]} 14... Rdg8 {[%clk 0:02:35.5]} 15. Nf4 {[%clk
0:02:26.3]} 15... Kb8 {[%clk 0:02:24.4]} 16. Be3 {[%clk 0:02:25.9]} 16... Nd8
{[%clk 0:02:16.4]} 17. Rc1 {[%clk 0:02:16.1]} 17... g5 {[%clk 0:02:15.5]} 18.
hxg6 {[%clk 0:02:14.4]} 18... fxg6 {[%clk 0:02:15.4]} 19. Qc2 {[%clk 0:02:07.8]}
19... a6 {[%clk 0:01:55.5]} 20. a4 {[%clk 0:01:44.8]} 20... g5 {[%clk
0:01:24.1]} 21. a5 {[%clk 0:01:24.3]} 21... Qc6 {[%clk 0:01:15]} 22. Qxc6 {[%clk
0:01:21.7]} 22... bxc6 {[%clk 0:01:13.9]} 23. Nxe6 {[%clk 0:01:21.6]} 23... Nxe6
{[%clk 0:01:13.7]} 24. Rxc6 {[%clk 0:01:21.7]} 24... Nc7 {[%clk 0:01:01.2]} 25.
Rec1 {[%clk 0:01:19.1]} 25... Bd8 {[%clk 0:00:57.1]} 26. Bd2 {[%clk 0:01:14.6]}
26... g4 {[%clk 0:00:44]} 27. Ne1 {[%clk 0:01:13.2]} 27... Rh7 {[%clk 0:00:39]}
28. Nd3 {[%clk 0:01:09.2]} 28... Bg5 {[%clk 0:00:35.9]} 29. Bf4 {[%clk 0:00:58]}
29... Bxf4 {[%clk 0:00:31.4]} 30. Nxf4 {[%clk 0:00:57.5]} 30... g3 {[%clk
0:00:31.8]} 31. f3 {[%clk 0:00:54.9]} 31... h5 {[%clk 0:00:31]} 32. R1c5 {[%clk
0:00:40.9]} 32... Rd8 {[%clk 0:00:23.2]} 33. Rb6+ {[%clk 0:00:36.2]} 33... Ka7
{[%clk 0:00:20.2]} 34. Rd6 {[%clk 0:00:34.6]} 34... Rxd6 {[%clk 0:00:05.1]} 35.
exd6 {[%clk 0:00:35.5]} 35... Nb5 {[%clk 0:00:05]} 36. Nxd5 {[%clk 0:00:31.8]}
36... Nxd6 {[%clk 0:00:02.5]} 37. Rc7+ {[%clk 0:00:24.6]} 37... Rxc7 {[%clk
0:00:01.9]} 38. Nxc7 {[%clk 0:00:25.5]} 38... Nc4 {[%clk 0:00:01.9]} 39. Ne6
{[%clk 0:00:21.9]} 39... Nxb2 {[%clk 0:00:01.5]} 40. Ng7 {[%clk 0:00:20]} 40...
Nc4 {[%clk 0:00:01.5]} 41. Nxh5 {[%clk 0:00:19.4]} 1-0

[Event "Early-Titled-Tuesday-Blitz-March-19-2024"]
[Site "Chess.com"]
[Date "2024.03.19"]
[Round "1"]
[White "AttackSparrow"]
[Black "AlessiaSanteramo"]
[Result "1-0"]
[WhiteElo "2629"]
[BlackElo "2254"]
[TimeControl "180+1"]
[EndTime "8:07:22 PDT"]
[Termination "AttackSparrow won by resignation"]

1. Nf3 {[%clk 0:03:00.9]} 1... Nf6 {[%clk 0:02:55.8]} 2. e3 {[%clk 0:03:01.1]}
2... Nc6 {[%clk 0:02:43.5]} 3. d4 {[%clk 0:03:00.4]} 3... d5 {[%clk 0:02:33.3]}
4. c4 {[%clk 0:03:00.2]} 4... e6 {[%clk 0:02:32.3]} 5. Nc3 {[%clk 0:03:00.3]}
5... Bb4 {[%clk 0:02:31.6]} 6. a3 {[%clk 0:02:46.2]} 6... Bxc3+ {[%clk
0:02:30.6]} 7. bxc3 {[%clk 0:02:47.1]} 7... Ne4 {[%clk 0:02:28.8]} 8. Qc2 {[%clk
0:02:43.8]} 8... f5 {[%clk 0:02:28.4]} 9. a4 {[%clk 0:02:41.3]} 9... O-O {[%clk
0:02:27.9]} 10. Ba3 {[%clk 0:02:40]} 10... Rf6 {[%clk 0:02:21.2]} 11. g3 {[%clk
0:02:35]} 11... Rh6 {[%clk 0:02:18.8]} 12. Bd3 {[%clk 0:02:09.3]} 12... Bd7
{[%clk 0:02:18.3]} 13. h4 {[%clk 0:02:00.2]} 13... Be8 {[%clk 0:02:17.6]} 14.
cxd5 {[%clk 0:02:00.9]} 14... exd5 {[%clk 0:02:17.5]} 15. c4 {[%clk 0:02:01.8]}
15... Bh5 {[%clk 0:02:14.6]} 16. Ng5 {[%clk 0:01:58.9]} 16... Nxg5 {[%clk
0:02:03.2]} 17. hxg5 {[%clk 0:01:59.8]} 17... Qxg5 {[%clk 0:02:03.6]} 18. cxd5
{[%clk 0:01:58.2]} 18... Re8 {[%clk 0:01:50.1]} 19. dxc6 {[%clk 0:00:58.3]}
19... Rxe3+ {[%clk 0:01:49]} 20. fxe3 {[%clk 0:00:59.2]} 20... Qxe3+ {[%clk
0:01:48.6]} 21. Kf1 {[%clk 0:00:54.1]} 21... Qf3+ {[%clk 0:01:48.6]} 22. Ke1
{[%clk 0:00:49]} 22... Qxh1+ {[%clk 0:01:10.2]} 23. Kd2 {[%clk 0:00:49.1]} 23...
Qg2+ {[%clk 0:00:27.8]} 24. Kc3 {[%clk 0:00:49.1]} 24... Rxc6+ {[%clk
0:00:27.5]} 25. Bc5 {[%clk 0:00:49.6]} 25... Qxc2+ {[%clk 0:00:07.3]} 26. Kxc2
{[%clk 0:00:50.5]} 26... b6 {[%clk 0:00:08.2]} 27. Bb5 {[%clk 0:00:50.9]} 27...
Rg6 {[%clk 0:00:07.6]} 28. Be7 {[%clk 0:00:29.9]} 28... Rxg3 {[%clk 0:00:07.8]}
29. Bd8 {[%clk 0:00:30.5]} 29... g5 {[%clk 0:00:07.6]} 30. Bxc7 {[%clk
0:00:28.7]} 30... f4 {[%clk 0:00:08.3]} 31. d5 {[%clk 0:00:24.9]} 31... Bg6+
{[%clk 0:00:08.7]} 32. Kb2 {[%clk 0:00:24.5]} 32... Rg2+ {[%clk 0:00:08.7]} 33.
Ka3 {[%clk 0:00:21.7]} 33... Rd2 {[%clk 0:00:09.2]} 34. d6 {[%clk 0:00:20.5]}
34... Bf5 {[%clk 0:00:08.6]} 35. Re1 {[%clk 0:00:18.8]} 35... f3 {[%clk
0:00:06.1]} 36. Re5 {[%clk 0:00:17.4]} 36... Bh3 {[%clk 0:00:04.3]} 37. Rxg5+
{[%clk 0:00:16.8]} 37... Kf7 {[%clk 0:00:04.9]} 38. Rg3 {[%clk 0:00:14.4]} 38...
Rd3+ {[%clk 0:00:02.9]} 39. Bxd3 {[%clk 0:00:13.6]} 1-0

[Event "Early-Titled-Tuesday-Blitz-March-19-2024"]
[Site "Chess.com"]
[Date "2024.03.19"]
[Round "1"]
[White "PepeCuenca"]
[Black "el_sporco"]
[Result "1-0"]
[WhiteElo "2723"]
[BlackElo "2388"]
[TimeControl "180+1"]
[EndTime "8:07:23 PDT"]
[Termination "PepeCuenca won on time"]

1. d4 {[%clk 0:03:00.9]} 1... Nf6 {[%clk 0:02:57]} 2. Bf4 {[%clk 0:03:00.8]}
2... Na6 {[%clk 0:02:55.4]} 3. Nc3 {[%clk 0:02:57.2]} 3... c5 {[%clk 0:02:54.8]}
4. d5 {[%clk 0:02:56.5]} 4... d6 {[%clk 0:02:54.4]} 5. e4 {[%clk 0:02:55.8]}
5... Nc7 {[%clk 0:02:52.9]} 6. a4 {[%clk 0:02:55]} 6... e6 {[%clk 0:02:52.1]} 7.
h3 {[%clk 0:02:43.2]} 7... exd5 {[%clk 0:02:46.3]} 8. exd5 {[%clk 0:02:43.3]}
8... g6 {[%clk 0:02:43.4]} 9. Nf3 {[%clk 0:02:41.5]} 9... Bg7 {[%clk 0:02:42.7]}
10. Be2 {[%clk 0:02:37.6]} 10... O-O {[%clk 0:02:42.7]} 11. O-O {[%clk
0:02:38.2]} 11... b6 {[%clk 0:02:31.2]} 12. Qd2 {[%clk 0:02:08.3]} 12... Bb7
{[%clk 0:02:27.6]} 13. Bg5 {[%clk 0:02:08.4]} 13... h6 {[%clk 0:02:11.9]} 14.
Bxh6 {[%clk 0:02:05.4]} 14... Ncxd5 {[%clk 0:02:09.7]} 15. Bxg7 {[%clk
0:02:02.5]} 15... Kxg7 {[%clk 0:02:09]} 16. Nxd5 {[%clk 0:01:58.7]} 16... Bxd5
{[%clk 0:01:59.1]} 17. Rfd1 {[%clk 0:01:52.1]} 17... Qc7 {[%clk 0:01:56]} 18.
Qc3 {[%clk 0:01:43.9]} 18... Bc6 {[%clk 0:01:52.9]} 19. b4 {[%clk 0:01:25.6]}
19... Rad8 {[%clk 0:01:43.6]} 20. Nh2 {[%clk 0:01:15.6]} 20... Qe7 {[%clk
0:01:34.2]} 21. bxc5 {[%clk 0:00:52.5]} 21... Qxe2 {[%clk 0:01:16.4]} 22. Ng4
{[%clk 0:00:51.9]} 22... Qe6 {[%clk 0:01:15.5]} 23. Re1 {[%clk 0:00:46.3]} 23...
Qf5 {[%clk 0:01:09.4]} 24. cxb6 {[%clk 0:00:37.7]} 24... Rc8 {[%clk 0:01:04.4]}
25. bxa7 {[%clk 0:00:29.1]} 25... Ba8 {[%clk 0:00:45.4]} 26. Qd4 {[%clk
0:00:23.3]} 26... Rxc2 {[%clk 0:00:38.4]} 27. Rac1 {[%clk 0:00:18.5]} 27... Rfc8
{[%clk 0:00:09.8]} 28. Rxc2 {[%clk 0:00:18.5]} 28... Rxc2 {[%clk 0:00:10.7]} 29.
Rf1 {[%clk 0:00:10.7]} 29... Rc7 {[%clk 0:00:09.4]} 30. Re1 {[%clk 0:00:09.7]}
30... Rxa7 {[%clk 0:00:09.1]} 31. Qxa7 {[%clk 0:00:08.7]} 31... Nxg4 {[%clk
0:00:09.1]} 32. hxg4 {[%clk 0:00:05.3]} 32... Qd5 {[%clk 0:00:08.7]} 33. f3
{[%clk 0:00:04.7]} 1-0

[Event "Early-Titled-Tuesday-Blitz-March-19-2024"]
[Site "Chess.com"]
[Date "2024.03.19"]
[Round "1"]
[White "Jahonas"]
[Black "nikitakhoroshev"]
[Result "1/2-1/2"]
[WhiteElo "2353"]
[BlackElo "2679"]
[TimeControl "180+1"]
[EndTime "8:07:23 PDT"]
[Termination "Game drawn - insufficient material"]

1. d4 {[%clk 0:03:00.9]} 1... d5 {[%clk 0:02:59]} 2. c4 {[%clk 0:03:00.8]} 2...
dxc4 {[%clk 0:02:59]} 3. e3 {[%clk 0:03:00.6]} 3... e5 {[%clk 0:02:58.2]} 4. Nf3
{[%clk 0:02:56.5]} 4... exd4 {[%clk 0:02:54.7]} 5. Qxd4 {[%clk 0:02:53.6]} 5...
Qxd4 {[%clk 0:02:50.4]} 6. Nxd4 {[%clk 0:02:53.6]} 6... c6 {[%clk 0:02:47]} 7.
Bxc4 {[%clk 0:02:52.5]} 7... Nf6 {[%clk 0:02:46.2]} 8. Nc3 {[%clk 0:02:50.6]}
8... Bc5 {[%clk 0:02:40.1]} 9. Nf3 {[%clk 0:02:41.2]} 9... O-O {[%clk
0:02:35.8]} 10. O-O {[%clk 0:02:37.9]} 10... Bf5 {[%clk 0:02:29.9]} 11. a3
{[%clk 0:02:32.8]} 11... a5 {[%clk 0:02:21.1]} 12. Nd4 {[%clk 0:02:20.5]} 12...
Bg6 {[%clk 0:02:17.1]} 13. Rd1 {[%clk 0:02:07]} 13... Nbd7 {[%clk 0:02:16.2]}
14. Bd2 {[%clk 0:02:04.7]} 14... Ne5 {[%clk 0:02:15.9]} 15. Be2 {[%clk
0:02:03.8]} 15... Rfd8 {[%clk 0:02:10.9]} 16. Na4 {[%clk 0:01:55.8]} 16... Be7
{[%clk 0:02:06.2]} 17. Nb6 {[%clk 0:01:50.8]} 17... Rab8 {[%clk 0:02:03.7]} 18.
Bxa5 {[%clk 0:01:49.1]} 18... Nd5 {[%clk 0:01:56.1]} 19. Nxd5 {[%clk 0:01:47.2]}
19... Rxd5 {[%clk 0:01:55.6]} 20. Bc3 {[%clk 0:01:46]} 20... Rbd8 {[%clk
0:01:53.9]} 21. Nf3 {[%clk 0:01:45.8]} 21... Nd3 {[%clk 0:01:50.5]} 22. Bxd3
{[%clk 0:01:45.1]} 22... Bxd3 {[%clk 0:01:49.4]} 23. Rd2 {[%clk 0:01:35.9]}
23... f6 {[%clk 0:01:48.7]} 24. Rad1 {[%clk 0:01:35]} 24... c5 {[%clk
0:01:48.7]} 25. Ne1 {[%clk 0:01:33.6]} 25... Bc4 {[%clk 0:01:43.5]} 26. Rxd5
{[%clk 0:01:32.6]} 26... Rxd5 {[%clk 0:01:44.4]} 27. Rxd5 {[%clk 0:01:32.6]}
27... Bxd5 {[%clk 0:01:45.3]} 28. f3 {[%clk 0:01:32.7]} 28... Kf7 {[%clk
0:01:41.5]} 29. Nd3 {[%clk 0:01:32.3]} 29... Bc4 {[%clk 0:01:40.7]} 30. Nc1
{[%clk 0:01:20.2]} 30... Ke6 {[%clk 0:01:38.4]} 31. Kf2 {[%clk 0:01:19.8]} 31...
g5 {[%clk 0:01:36.8]} 32. g3 {[%clk 0:01:15.6]} 32... f5 {[%clk 0:01:36.3]} 33.
b4 {[%clk 0:01:11.9]} 33... b6 {[%clk 0:01:35.2]} 34. Ne2 {[%clk 0:01:06.8]}
34... Kd5 {[%clk 0:01:31.7]} 35. h3 {[%clk 0:00:47]} 35... Bxe2 {[%clk
0:01:27.5]} 36. Kxe2 {[%clk 0:00:46.6]} 36... Kc4 {[%clk 0:01:28.1]} 37. Bd2
{[%clk 0:00:46]} 37... cxb4 {[%clk 0:01:28]} 38. axb4 {[%clk 0:00:46.3]} 38...
Bxb4 {[%clk 0:01:28.8]} 39. Bc1 {[%clk 0:00:45.3]} 39... Bd6 {[%clk 0:01:16.3]}
40. g4 {[%clk 0:00:44.3]} 40... fxg4 {[%clk 0:01:15.9]} 41. hxg4 {[%clk
0:00:42.6]} 41... b5 {[%clk 0:01:16.5]} 42. f4 {[%clk 0:00:41.6]} 42... gxf4
{[%clk 0:01:11.3]} 43. exf4 {[%clk 0:00:41.7]} 43... b4 {[%clk 0:01:11.9]} 44.
g5 {[%clk 0:00:36.1]} 44... b3 {[%clk 0:01:11]} 45. Kf3 {[%clk 0:00:32]} 45...
Kc3 {[%clk 0:01:11.2]} 46. f5 {[%clk 0:00:21.9]} 46... Kc2 {[%clk 0:01:11]} 47.
g6 {[%clk 0:00:17.6]} 47... hxg6 {[%clk 0:01:10.6]} 48. fxg6 {[%clk 0:00:17.6]}
48... Kxc1 {[%clk 0:00:29.7]} 49. g7 {[%clk 0:00:16.7]} 49... b2 {[%clk
0:00:30.6]} 50. g8=Q {[%clk 0:00:17.2]} 50... b1=Q {[%clk 0:00:31.5]} 51. Qg1+
{[%clk 0:00:16.4]} 51... Kb2 {[%clk 0:00:31]} 52. Qxb1+ {[%clk 0:00:16.7]} 52...
Kxb1 {[%clk 0:00:31.9]} 1/2-1/2

[Event "Early-Titled-Tuesday-Blitz-March-19-2024"]
[Site "Chess.com"]
[Date "2024.03.19"]
[Round "1"]
[White "Iskusnyh"]
[Black "VladimirBugayev"]
[Result "0-1"]
[WhiteElo "2650"]
[BlackElo "2335"]
[TimeControl "180+1"]
[EndTime "8:07:23 PDT"]
[Termination "VladimirBugayev won by checkmate"]

1. d4 {[%clk 0:02:58.7]} 1... Nf6 {[%clk 0:02:59.3]} 2. c4 {[%clk 0:02:57.6]}
2... c5 {[%clk 0:02:59.4]} 3. d5 {[%clk 0:02:57.1]} 3... b5 {[%clk 0:03:00]} 4.
cxb5 {[%clk 0:02:52]} 4... a6 {[%clk 0:03:00.6]} 5. e3 {[%clk 0:02:49.7]} 5...
g6 {[%clk 0:02:59.4]} 6. Nc3 {[%clk 0:02:44.3]} 6... Bg7 {[%clk 0:02:59.3]} 7.
a4 {[%clk 0:02:42.2]} 7... O-O {[%clk 0:02:59.4]} 8. e4 {[%clk 0:02:34.5]} 8...
e6 {[%clk 0:02:49.5]} 9. e5 {[%clk 0:02:30.1]} 9... Nxd5 {[%clk 0:02:45.2]} 10.
Nxd5 {[%clk 0:02:31]} 10... exd5 {[%clk 0:02:45.1]} 11. Qxd5 {[%clk 0:02:31.8]}
11... Ra7 {[%clk 0:02:45.7]} 12. Nf3 {[%clk 0:02:23.4]} 12... axb5 {[%clk
0:02:30.5]} 13. Bxb5 {[%clk 0:02:22.3]} 13... Bb7 {[%clk 0:02:20.8]} 14. Qxc5
{[%clk 0:02:03.9]} 14... Bxf3 {[%clk 0:02:20.3]} 15. Qxa7 {[%clk 0:02:00.4]}
15... Bxg2 {[%clk 0:02:20.2]} 16. Rg1 {[%clk 0:02:00.5]} 16... Bf3 {[%clk
0:02:04.7]} 17. Bf4 {[%clk 0:01:52.8]} 17... Nc6 {[%clk 0:01:58.1]} 18. Qe3
{[%clk 0:01:51.2]} 18... Bd5 {[%clk 0:01:48.6]} 19. O-O-O {[%clk 0:01:46.8]}
19... Nb4 {[%clk 0:01:35.3]} 20. Qc5 {[%clk 0:01:30.8]} 20... Na2+ {[%clk
0:01:29]} 21. Kb1 {[%clk 0:01:29.2]} 21... Be6 {[%clk 0:01:29.4]} 22. Bc4 {[%clk
0:01:21.9]} 22... Qa8 {[%clk 0:01:22.5]} 23. Bxa2 {[%clk 0:01:10.2]} 23... Bxa2+
{[%clk 0:01:16.3]} 24. Kxa2 {[%clk 0:01:09.1]} 24... Qxa4+ {[%clk 0:01:16.9]}
25. Kb1 {[%clk 0:01:03.5]} 25... Qe4+ {[%clk 0:01:15.9]} 26. Qc2 {[%clk
0:00:57.2]} 26... Qxf4 {[%clk 0:01:16]} 27. Rxd7 {[%clk 0:00:55.1]} 27... Qxe5
{[%clk 0:01:15.5]} 28. Rgd1 {[%clk 0:00:54.6]} 28... Bf6 {[%clk 0:01:10.7]} 29.
Rb7 {[%clk 0:00:38.9]} 29... Qxh2 {[%clk 0:01:04.5]} 30. Rdd7 {[%clk 0:00:25.4]}
30... Qh1+ {[%clk 0:01:00.7]} 31. Qd1 {[%clk 0:00:22.6]} 31... Qe4+ {[%clk
0:00:58.4]} 32. Qd3 {[%clk 0:00:22.2]} 32... Qe1+ {[%clk 0:00:56]} 33. Kc2
{[%clk 0:00:17]} 33... Rc8+ {[%clk 0:00:51.9]} 34. Kb3 {[%clk 0:00:16.2]} 34...
Qxf2 {[%clk 0:00:48]} 35. Qd2 {[%clk 0:00:13.5]} 35... Qf3+ {[%clk 0:00:44.2]}
36. Ka2 {[%clk 0:00:11.6]} 36... Ra8+ {[%clk 0:00:42]} 37. Kb1 {[%clk
0:00:10.7]} 37... Qf5+ {[%clk 0:00:35.9]} 38. Qd3 {[%clk 0:00:10.1]} 38... Qe5
{[%clk 0:00:33.4]} 39. Qb3 {[%clk 0:00:07]} 39... Qe1+ {[%clk 0:00:31]} 40. Rd1
{[%clk 0:00:06.6]} 40... Qe4+ {[%clk 0:00:30.3]} 41. Qd3 {[%clk 0:00:06.7]}
41... Qxb7 {[%clk 0:00:29.6]} 42. Qd5 {[%clk 0:00:03.5]} 42... Qxb2# {[%clk
0:00:29.1]} 0-1

[Event "Early-Titled-Tuesday-Blitz-March-19-2024"]
[Site "Chess.com"]
[Date "2024.03.19"]
[Round "1"]
[White "Oleksandr_Bortnyk"]
[Black "axvesik"]
[Result "1-0"]
[WhiteElo "3040"]
[BlackElo "2561"]
[TimeControl "180+1"]
[EndTime "8:07:24 PDT"]
[Termination "Oleksandr_Bortnyk won by resignation"]

1. e4 {[%clk 0:02:51]} 1... e6 {[%clk 0:02:55.8]} 2. Nf3 {[%clk 0:02:45.6]} 2...
d5 {[%clk 0:02:55.3]} 3. e5 {[%clk 0:02:46.1]} 3... c5 {[%clk 0:02:54.8]} 4. d4
{[%clk 0:02:47]} 4... Nc6 {[%clk 0:02:52.3]} 5. Bd3 {[%clk 0:02:46.7]} 5... cxd4
{[%clk 0:02:50.9]} 6. O-O {[%clk 0:02:46.8]} 6... Nge7 {[%clk 0:02:50.7]} 7. Bf4
{[%clk 0:02:45.3]} 7... Ng6 {[%clk 0:02:50.3]} 8. Bg3 {[%clk 0:02:46]} 8... Be7
{[%clk 0:02:47]} 9. Nbd2 {[%clk 0:02:42.9]} 9... O-O {[%clk 0:02:37.2]} 10. Re1
{[%clk 0:02:19.6]} 10... Bd7 {[%clk 0:02:17.7]} 11. Nb3 {[%clk 0:02:19]} 11...
Qb6 {[%clk 0:02:16]} 12. h4 {[%clk 0:02:12.7]} 12... f5 {[%clk 0:02:07.9]} 13.
exf6 {[%clk 0:02:05]} 13... Rxf6 {[%clk 0:02:05.9]} 14. h5 {[%clk 0:02:03.6]}
14... Nf4 {[%clk 0:01:46]} 15. Bh4 {[%clk 0:01:49]} 15... Nxd3 {[%clk
0:01:11.7]} 16. cxd3 {[%clk 0:01:36.5]} 16... Rf7 {[%clk 0:01:02]} 17. Bxe7
{[%clk 0:01:34.4]} 17... Rxe7 {[%clk 0:01:01.9]} 18. Ne5 {[%clk 0:01:31.3]}
18... Nxe5 {[%clk 0:00:56.6]} 19. Rxe5 {[%clk 0:01:32.2]} 19... Ba4 {[%clk
0:00:56.7]} 20. Qg4 {[%clk 0:01:30.2]} 20... Bxb3 {[%clk 0:00:49.5]} 21. axb3
{[%clk 0:01:31.1]} 21... Rae8 {[%clk 0:00:46.1]} 22. h6 {[%clk 0:01:26.7]} 22...
Qxb3 {[%clk 0:00:36.8]} 23. Rxe6 {[%clk 0:01:22.7]} 23... g6 {[%clk 0:00:29.4]}
24. Qxd4 {[%clk 0:00:57.6]} 24... Qb5 {[%clk 0:00:20.8]} 25. Rxa7 {[%clk
0:00:33.5]} 25... Qd7 {[%clk 0:00:20]} 26. Rxe7 {[%clk 0:00:33.6]} 26... Rxe7
{[%clk 0:00:19.9]} 27. Ra8+ {[%clk 0:00:33.8]} 27... Kf7 {[%clk 0:00:19.9]} 28.
Qf4+ {[%clk 0:00:25.1]} 28... Ke6 {[%clk 0:00:13.8]} 29. Rf8 {[%clk 0:00:19.2]}
29... d4 {[%clk 0:00:10.1]} 30. Qe4+ {[%clk 0:00:10.6]} 30... Kd6 {[%clk
0:00:09.5]} 31. Qxd4+ {[%clk 0:00:10.8]} 31... Kc6 {[%clk 0:00:08.2]} 32. Rf6+
{[%clk 0:00:09]} 32... Kc7 {[%clk 0:00:04.5]} 33. Qf4+ {[%clk 0:00:06.1]} 33...
Kc8 {[%clk 0:00:03.6]} 34. Rf8+ {[%clk 0:00:06.4]} 34... Re8 {[%clk 0:00:04]}
35. Qc4+ {[%clk 0:00:06.6]} 35... Kb8 {[%clk 0:00:03.9]} 36. Rxe8+ {[%clk
0:00:05.1]} 36... Qxe8 {[%clk 0:00:03.7]} 37. Qf4+ {[%clk 0:00:04.4]} 37... Ka7
{[%clk 0:00:03.4]} 38. Qe3+ {[%clk 0:00:04.9]} 38... Qxe3 {[%clk 0:00:03.3]} 39.
fxe3 {[%clk 0:00:05.8]} 1-0

[Event "Early-Titled-Tuesday-Blitz-March-19-2024"]
[Site "Chess.com"]
[Date "2024.03.19"]
[Round "1"]
[White "Seochesspie"]
[Black "cande_francisco"]
[Result "1-0"]
[WhiteElo "2887"]
[BlackElo "2503"]
[TimeControl "180+1"]
[EndTime "8:07:24 PDT"]
[Termination "Seochesspie won by resignation"]

1. e4 {[%clk 0:03:00.9]} 1... c5 {[%clk 0:03:00.2]} 2. Nf3 {[%clk 0:03:00.8]}
2... a6 {[%clk 0:03:00.6]} 3. b3 {[%clk 0:02:58.7]} 3... Nc6 {[%clk 0:03:00.5]}
4. Bb2 {[%clk 0:02:59]} 4... e6 {[%clk 0:02:54.1]} 5. g3 {[%clk 0:02:57.6]} 5...
Nf6 {[%clk 0:02:54.1]} 6. Qe2 {[%clk 0:02:55.2]} 6... Be7 {[%clk 0:02:52.8]} 7.
Bg2 {[%clk 0:02:55.3]} 7... d5 {[%clk 0:02:52.9]} 8. exd5 {[%clk 0:02:54.3]}
8... exd5 {[%clk 0:02:35.7]} 9. O-O {[%clk 0:02:49.1]} 9... O-O {[%clk
0:02:34.8]} 10. d3 {[%clk 0:02:37.7]} 10... Re8 {[%clk 0:02:29.7]} 11. Nbd2
{[%clk 0:02:36.9]} 11... Bg4 {[%clk 0:02:21.4]} 12. Rfe1 {[%clk 0:02:34.7]}
12... Nd4 {[%clk 0:02:14]} 13. Qd1 {[%clk 0:02:32]} 13... Rc8 {[%clk 0:02:06.3]}
14. Qc1 {[%clk 0:02:27.9]} 14... Nxf3+ {[%clk 0:02:03.4]} 15. Nxf3 {[%clk
0:02:28.2]} 15... Qc7 {[%clk 0:01:36.3]} 16. Be5 {[%clk 0:02:23.2]} 16... Qd7
{[%clk 0:01:32.4]} 17. Bb2 {[%clk 0:02:16.2]} 17... Bh3 {[%clk 0:01:22]} 18. Bh1
{[%clk 0:02:10.8]} 18... d4 {[%clk 0:01:15.1]} 19. a4 {[%clk 0:02:01.7]} 19...
Bd6 {[%clk 0:01:13.2]} 20. Qg5 {[%clk 0:01:57.4]} 20... h6 {[%clk 0:01:11.1]}
21. Qd2 {[%clk 0:01:50.4]} 21... Rxe1+ {[%clk 0:00:52.9]} 22. Rxe1 {[%clk
0:01:49.9]} 22... Re8 {[%clk 0:00:53.5]} 23. Rxe8+ {[%clk 0:01:32.8]} 23... Qxe8
{[%clk 0:00:54.4]} 24. Qe1 {[%clk 0:01:24.8]} 24... Qd7 {[%clk 0:00:48]} 25. Nd2
{[%clk 0:01:20.9]} 25... b5 {[%clk 0:00:45.5]} 26. axb5 {[%clk 0:01:20.3]} 26...
axb5 {[%clk 0:00:46.4]} 27. b4 {[%clk 0:01:04.4]} 27... Be7 {[%clk 0:00:38.2]}
28. bxc5 {[%clk 0:01:02.7]} 28... Bxc5 {[%clk 0:00:39.1]} 29. Nb3 {[%clk
0:01:00.2]} 29... Bb6 {[%clk 0:00:37.3]} 30. Qe5 {[%clk 0:00:50.3]} 30... Qa7
{[%clk 0:00:25]} 31. Bg2 {[%clk 0:00:45.8]} 31... Qa2 {[%clk 0:00:20.4]} 32.
Bxh3 {[%clk 0:00:38.1]} 32... Qxb2 {[%clk 0:00:20.5]} 33. Qb8+ {[%clk
0:00:37.8]} 33... Kh7 {[%clk 0:00:19.9]} 34. Qxb6 {[%clk 0:00:37.5]} 34... Qb1+
{[%clk 0:00:15.6]} 35. Bf1 {[%clk 0:00:32.7]} 35... Qxc2 {[%clk 0:00:14.4]} 36.
Nxd4 {[%clk 0:00:31.8]} 36... Qd2 {[%clk 0:00:08.5]} 37. Nxb5 {[%clk 0:00:30.3]}
37... Ng4 {[%clk 0:00:07.5]} 38. Qd4 {[%clk 0:00:27.5]} 38... h5 {[%clk
0:00:06.3]} 39. h3 {[%clk 0:00:22]} 39... Nf6 {[%clk 0:00:06.2]} 40. Nc3 {[%clk
0:00:21.2]} 40... Qc1 {[%clk 0:00:02.5]} 41. Ne4 {[%clk 0:00:20.2]} 1-0